bitfinex/quotes_BTCUSD_20240730
["timestamp","ask_amount","ask_price","bid_price","bid_amount"]
[1722299439780,0.0147523,66450.0,66449.0,1.11238404]
[1722299440012,0.0147523,66450.0,66449.0,1.10138404]
[1722299440276,0.0147523,66450.0,66449.0,1.09338404]
[1722299440468,0.0147523,66450.0,66449.0,1.10538404]
[1722299440761,0.0147523,66450.0,66449.0,1.11038404]
[1722299441832,0.0147523,66450.0,66449.0,1.38134004]
[1722299442068,0.0147523,66450.0,66449.0,1.37417004]
[1722299442448,0.0147523,66450.0,66449.0,1.36917004]
[1722299442899,0.0147523,66450.0,66449.0,1.35717004]
[1722299443280,0.0147523,66450.0,66449.0,1.37117004]
[1722299443475,0.0147523,66450.0,66449.0,1.35717004]
[1722299443834,0.0147523,66450.0,66449.0,1.36850004]
[1722299444035,0.0147523,66450.0,66449.0,1.39867004]
[1722299445005,0.0147523,66450.0,66449.0,1.41067004]
[1722299445751,0.0147523,66450.0,66449.0,1.41867004]
[1722299446936,0.0147523,66450.0,66449.0,1.40667004]
[1722299447485,0.0147523,66450.0,66449.0,1.42067004]
[1722299447696,0.0147523,66450.0,66449.0,1.40667004]
[1722299447858,0.0147523,66450.0,66449.0,1.42067004]
[1722299448852,0.0147523,66450.0,66449.0,0.78592804]
[1722299449217,0.0147523,66450.0,66449.0,0.03333]
[1722299449218,0.02538653,66450.0,66449.0,0.03333]
[1722299449420,0.02538653,66450.0,66449.0,0.145723]
[1722299449421,0.18170756,66450.0,66449.0,0.145723]
[1722299449622,0.17107333,66450.0,66449.0,0.02533]
[1722299449829,0.17107333,66450.0,66449.0,0.03733]
[1722299450028,0.27887333,66450.0,66449.0,0.03733]
[1722299450282,0.27887333,66450.0,66449.0,0.01133]
[1722299450653,0.27887333,66450.0,66449.0,0.03033]
[1722299450654,0.30248169,66450.0,66449.0,0.03033]
[1722299450856,0.36597333,66450.0,66449.0,0.01933]
[1722299451059,0.36597333,66450.0,66417.0,0.55444115]
[1722299451060,0.1906,66440.0,66417.0,0.44444115]
[1722299451343,0.1906,66423.0,66419.0,0.15063304]
[1722299451524,0.15632103,66422.0,66420.0,0.24089]
[1722299451729,0.15632103,66422.0,66421.0,0.27107604]
[1722299451865,0.15632103,66422.0,66421.0,0.51196304]
[1722299452068,0.15632103,66422.0,66421.0,0.15063304]
[1722299452266,0.15632103,66422.0,66421.0,0.27107604]
[1722299452474,0.15632103,66422.0,66420.0,0.120444]
[1722299452674,0.15632103,66422.0,66420.0,0.15063304]
[1722299452859,0.15632103,66422.0,66420.0,0.27107804]
[1722299453058,0.15632103,66422.0,66421.0,0.120443]
[1722299453519,0.15632103,66422.0,66421.0,0.51196304]
[1722299453658,0.25528527,66422.0,66421.0,0.15063304]
[1722299453861,0.23666819,66422.0,66421.0,0.51196304]
[1722299454070,0.23666819,66422.0,66421.0,0.75285004]
[1722299454275,0.07534716,66422.0,66421.0,0.75285004]
[1722299454475,0.07534716,66422.0,66421.0,0.27107604]
[1722299454694,0.08234716,66422.0,66421.0,0.27307604]
[1722299454891,0.08234716,66422.0,66421.0,0.15263304]
[1722299455093,0.23774068,66422.0,66421.0,0.15163304]
[1722299455292,0.23874068,66422.0,66421.0,0.27207604]
[1722299455696,0.08234716,66422.0,66421.0,0.27207604]
[1722299456108,0.08234716,66422.0,66421.0,0.120443]
[1722299456109,0.07634716,66422.0,66421.0,0.120443]
[1722299456351,0.07634716,66422.0,66418.0,0.240896]
[1722299456352,0.23274381,66422.0,66418.0,0.120449]
[1722299456553,0.23274381,66422.0,66419.0,0.15063304]
[1722299456554,0.08134716,66422.0,66419.0,0.15063304]
[1722299456790,0.08234716,66422.0,66419.0,0.15063304]
[1722299457316,0.10596432,66422.0,66419.0,0.15063304]
[1722299457718,0.10596432,66422.0,66419.0,0.27107904]
[1722299458021,0.10396432,66422.0,66420.0,0.1219992]
[1722299458243,0.10496432,66422.0,66420.0,0.27107804]
[1722299458444,0.07634716,66422.0,66421.0,0.120443]
[1722299459027,0.07534716,66422.0,66421.0,0.120443]
[1722299459398,0.07634716,66422.0,66420.0,0.27107804]
[1722299459951,0.001,66422.0,66421.0,0.27107604]
[1722299460171,0.001,66422.0,66421.0,0.51196304]
[1722299460367,0.001,66422.0,66412.0,0.1818]
[1722299460368,0.006,66422.0,66412.0,0.1]
[1722299460592,0.006,66422.0,66413.0,0.27109004]
[1722299460593,0.18254716,66416.0,66413.0,0.27109004]
[1722299460853,0.18254716,66416.0,66413.0,0.15063304]
[1722299461007,0.18254716,66416.0,66415.0,0.120454]
[1722299461221,0.18254716,66416.0,66415.0,0.15063304]
[1722299461435,0.35720757,66416.0,66401.0,0.100313]
[1722299461658,0.07534716,66406.0,66405.0,0.120472]
[1722299461851,0.120462,66411.0,66405.0,0.15063304]
[1722299462095,0.0867,66415.0,66406.0,0.15063304]
[1722299462096,0.07534716,66407.0,66406.0,0.15063304]
[1722299462228,0.07534716,66407.0,66401.0,0.000913]
[1722299462430,0.07534716,66407.0,66402.0,0.15063304]
[1722299462633,0.06848207,66414.0,66402.0,0.15063304]
[1722299462840,0.20080188,66416.0,66402.0,0.15063304]
[1722299462841,0.1072,66416.0,66415.0,0.120454]
[1722299463061,0.0867,66422.0,66421.0,0.36133]
[1722299463259,0.0867,66422.0,66421.0,0.51196304]
[1722299463664,0.1072,66423.0,66422.0,0.120442]
[1722299464002,0.1072,66423.0,66422.0,0.51195904]
[1722299464202,0.1072,66423.0,66422.0,0.15063304]
[1722299464344,0.1072,66423.0,66417.0,0.120449]
[1722299464551,0.07534716,66418.0,66412.0,0.240917]
[1722299464750,0.07534716,66418.0,66417.0,0.361353]
[1722299464953,0.1007,66430.0,66422.0,0.240884]
[1722299465174,0.08833917,66434.0,66413.0,0.1]
[1722299465175,0.1823,66438.0,66423.0,0.00456518]
[1722299465376,0.19945159,66450.0,66441.0,0.361222]
[1722299465377,0.08833917,66442.0,66441.0,0.361222]
[1722299465579,0.1007,66446.0,66441.0,0.361222]
[1722299465580,0.07534716,66445.0,66441.0,0.15063304]
[1722299465926,0.07534716,66445.0,66427.0,0.240864]
[1722299465927,0.10267011,66445.0,66431.0,0.1]
[1722299466049,0.07534716,66434.0,66433.0,0.120422]
[1722299466255,0.07534716,66434.0,66433.0,0.61189804]
[1722299466713,0.098957,66445.0,66444.0,0.361206]
[1722299466714,0.02360984,66445.0,66444.0,0.361206]
[1722299466915,0.0155823,66450.0,66449.0,0.361179]
[1722299467338,0.0155823,66450.0,66449.0,0.51181204]
[1722299467488,0.0155823,66450.0,66449.0,0.15063304]
[1722299467907,0.0155823,66450.0,66449.0,0.27102604]
[1722299468107,0.0155823,66450.0,66449.0,0.75259804]
[1722299468608,0.0155823,66450.0,66449.0,0.99338404]
[1722299468791,0.0155823,66450.0,66449.0,1.09338404]
[1722299469216,0.0155823,66450.0,66449.0,0.85259804]
[1722299469980,0.0155823,66450.0,66449.0,1.09338404]
[1722299470384,0.03918774,66450.0,66449.0,1.09338404]
[1722299470587,0.03918774,66450.0,66449.0,1.11638404]
[1722299471010,0.03918774,66450.0,66449.0,1.44227004]
[1722299471210,0.03918774,66450.0,66449.0,1.20148404]
[1722299471418,0.0155823,66450.0,66449.0,1.20148404]
[1722299472628,0.0155823,66450.0,66449.0,1.80235604]
[1722299472942,0.00848,66463.0,66462.0,0.440408]
[1722299473166,0.00848,66463.0,66462.0,1.18742967]
[1722299474133,0.03208087,66463.0,66462.0,1.18742967]
[1722299474704,0.00848,66463.0,66462.0,1.18742967]
[1722299475152,0.00848,66463.0,66462.0,1.21759967]
[1722299475349,0.00848,66463.0,66462.0,1.34989967]
[1722299476758,0.00848,66463.0,66462.0,1.21759967]
[1722299476982,0.00848,66463.0,66462.0,1.13829967]
[1722299477507,0.00848,66463.0,66462.0,1.16129967]
[1722299477719,0.00848,66463.0,66462.0,1.17329967]
[1722299477882,0.03207974,66463.0,66462.0,1.17329967]
[1722299478292,0.03207974,66463.0,66462.0,1.15838904]
[1722299478855,0.03207974,66463.0,66462.0,1.13538904]
[1722299479060,0.00848,66463.0,66462.0,1.13538904]
[1722299479460,0.00848,66463.0,66462.0,0.62374104]
[1722299479662,0.00848,66463.0,66462.0,0.38300204]
[1722299479896,0.00848,66463.0,66462.0,0.85248004]
[1722299480100,0.00848,66463.0,66462.0,0.25063304]
[1722299480311,0.00848,66463.0,66462.0,0.28300204]
[1722299480508,0.00848,66463.0,66462.0,0.27900204]
[1722299480726,0.00848,66463.0,66462.0,0.15863304]
[1722299481037,0.14965572,66463.0,66462.0,0.012]
[1722299481237,0.08958,66463.0,66462.0,0.012]
[1722299481430,0.209947,66463.0,66462.0,0.012]
[1722299481633,0.84773759,66463.0,66462.0,0.012]
[1722299481840,0.240795,66447.0,66435.0,0.120418]
[1722299482038,0.02,66456.0,66435.0,0.01491063]
[1722299482039,0.07534716,66443.0,66435.0,0.01491063]
[1722299482336,0.07534716,66443.0,66442.0,0.120405]
[1722299482635,0.07534716,66450.0,66442.0,0.01491063]
[1722299483260,0.07534716,66450.0,66448.0,0.120393]
[1722299483460,0.07534716,66450.0,66444.0,0.240801]
[1722299483461,0.07534716,66450.0,66449.0,0.120393]
[1722299483828,0.19573916,66450.0,66442.0,0.01491063]
[1722299484041,0.19573916,66450.0,66441.0,0.120406]
[1722299484233,0.07534716,66450.0,66434.0,0.240838]
[1722299484450,0.07534716,66450.0,66442.0,0.240811]
[1722299484655,0.07534716,66450.0,66449.0,0.120393]
[1722299484862,0.07534716,66450.0,66449.0,0.361179]
[1722299485062,0.07534716,66450.0,66449.0,0.51181204]
[1722299485439,0.07534716,66450.0,66449.0,0.75259804]
[1722299485834,0.07534716,66457.0,66456.0,0.12038]
[1722299486033,0.07534716,66457.0,66456.0,0.15063304]
[1722299486963,0.07534716,66457.0,66449.0,0.01491063]
[1722299487182,0.07534716,66450.0,66449.0,0.15063304]
[1722299487391,0.07534716,66450.0,66449.0,0.27102604]
[1722299487577,0.07534716,66450.0,66449.0,0.51181204]
[1722299487904,0.07534716,66450.0,66449.0,0.15063304]
[1722299488130,0.07534716,66450.0,66449.0,0.120393]
[1722299488338,0.07534716,66450.0,66441.0,0.240813]
[1722299488339,0.08288188,66450.0,66443.0,0.120403]
[1722299488539,0.15634282,66449.0,66444.0,0.120401]
[1722299488743,0.15634282,66449.0,66448.0,0.120394]
[1722299488953,0.15634282,66449.0,66448.0,0.51181604]
[1722299489302,0.07534716,66450.0,66449.0,0.120393]
[1722299489506,0.23167612,66450.0,66449.0,0.27102604]
[1722299489958,0.23167612,66450.0,66449.0,0.51181204]
[1722299490159,0.15632896,66450.0,66449.0,0.51181204]
[1722299490386,0.15632896,66450.0,66440.0,0.01491063]
[1722299490387,0.01,66454.0,66440.0,0.01491063]
[1722299490586,0.01,66454.0,66430.0,0.1]
[1722299490587,0.0814,66440.0,66430.0,0.1]
[1722299490881,0.07534716,66434.0,66433.0,0.80570715]
[1722299491100,0.07534716,66434.0,66431.0,0.15063304]
[1722299491101,0.23167566,66434.0,66431.0,0.15063304]
[1722299491300,0.23167566,66434.0,66432.0,0.120423]
[1722299491301,0.1563285,66433.0,66432.0,0.120423]
[1722299491449,0.1563285,66433.0,66431.0,0.15063304]
[1722299491650,0.1563285,66433.0,66432.0,0.120423]
[1722299491990,0.1563285,66433.0,66432.0,0.36127]
[1722299492411,0.1563285,66433.0,66432.0,0.61190304]
[1722299492811,0.07534716,66434.0,66433.0,0.120422]
[1722299493015,0.23170953,66434.0,66433.0,0.361266]
[1722299493753,0.23170953,66434.0,66433.0,0.120422]
[1722299494101,0.25532124,66434.0,66432.0,0.26063304]
[1722299494308,0.15636237,66433.0,66432.0,0.26063304]
[1722299494696,0.15636237,66433.0,66432.0,0.62190304]
[1722299494897,0.15636237,66433.0,66432.0,0.38105604]
[1722299495752,0.15636237,66433.0,66432.0,0.11]
[1722299495980,0.15637618,66433.0,66432.0,0.01]
[1722299496196,0.15637618,66433.0,66432.0,0.52190304]
[1722299496398,0.15737618,66433.0,66432.0,0.87375004]
[1722299496912,0.15736725,66433.0,66432.0,0.87375004]
[1722299497112,0.15736725,66433.0,66432.0,0.63290304]
[1722299497318,0.07534716,66434.0,66433.0,0.361266]
[1722299497490,0.23171261,66434.0,66433.0,0.361266]
[1722299497693,0.07534716,66434.0,66433.0,0.361266]
[1722299497845,0.09895906,66434.0,66433.0,0.361266]
[1722299498448,0.0236119,66434.0,66433.0,0.75274304]
[1722299498786,0.07534716,66441.0,66439.0,0.12041]
[1722299499005,0.19574216,66448.0,66436.0,0.09901063]
[1722299499006,0.07534716,66448.0,66436.0,0.09901063]
[1722299499166,0.07534716,66448.0,66447.0,0.361189]
[1722299499369,0.23169238,66448.0,66447.0,0.61689263]
[1722299499783,0.23167758,66448.0,66447.0,0.61689263]
[1722299500048,0.07534716,66448.0,66447.0,0.76752567]
[1722299500440,0.07534716,66457.0,66456.0,0.12038]
[1722299500668,0.07534716,66457.0,66456.0,0.36114]
[1722299500669,0.23166813,66457.0,66456.0,0.36114]
[1722299500899,0.23166813,66457.0,66453.0,0.120385]
[1722299501071,0.07534716,66457.0,66456.0,0.12038]
[1722299501273,0.07534716,66457.0,66453.0,0.15063304]
[1722299501505,0.15632542,66456.0,66455.0,0.120382]
[1722299501817,0.15632542,66456.0,66453.0,0.15063304]
[1722299502024,0.17993091,66456.0,66453.0,0.15063304]
[1722299502220,0.15632542,66455.0,66454.0,0.120383]
[1722299502432,0.07534716,66457.0,66455.0,0.120382]
[1722299502631,0.15632069,66456.0,66455.0,0.120382]
[1722299503000,0.15632069,66456.0,66455.0,0.361146]
[1722299503338,0.15632069,66456.0,66455.0,0.120382]
[1722299503557,0.15632069,66456.0,66453.0,0.15063304]
[1722299503776,0.19152488,66456.0,66447.0,0.01491063]
[1722299503980,0.006,66456.0,66455.0,0.001]
[1722299504152,0.006,66456.0,66455.0,0.121382]
[1722299504153,0.16232772,66456.0,66455.0,0.121382]
[1722299504353,0.16232772,66456.0,66455.0,0.39239704]
[1722299504354,0.23767488,66456.0,66455.0,0.39239704]
[1722299504579,0.23767488,66456.0,66455.0,0.51277904]
[1722299504793,0.23167488,66456.0,66455.0,0.51177904]
[1722299505130,0.23767488,66456.0,66455.0,0.75254304]
[1722299505334,0.23767488,66456.0,66455.0,0.76745367]
[1722299505662,0.2612792,66456.0,66455.0,0.76745367]
[1722299505889,0.23767488,66456.0,66455.0,0.76745367]
[1722299506766,0.23167488,66456.0,66455.0,0.76745367]
[1722299506970,0.15632772,66456.0,66455.0,1.00821767]
[1722299507191,0.00848,66463.0,66462.0,0.240739]
[1722299507362,0.16478537,66463.0,66462.0,0.361108]
[1722299508307,0.16778537,66463.0,66462.0,0.602847]
[1722299508720,0.16778537,66463.0,66462.0,0.75348004]
[1722299508967,0.16778537,66463.0,66462.0,0.76839067]
[1722299509124,0.16778537,66463.0,66462.0,1.00912967]
[1722299509340,0.16778537,66463.0,66462.0,1.43076867]
[1722299509341,0.01148,66463.0,66462.0,1.43076867]
[1722299509542,0.01148,66463.0,66462.0,1.45376867]
[1722299509744,0.01148,66463.0,66462.0,1.21302967]
[1722299511614,0.01148,66463.0,66462.0,1.31842967]
[1722299511998,0.02548,66463.0,66462.0,1.31942967]
[1722299512209,0.01148,66463.0,66462.0,1.32730529]
[1722299512393,0.01148,66463.0,66462.0,1.31239466]
[1722299512723,0.01248,66463.0,66462.0,1.32539466]
[1722299513367,0.01048,66463.0,66462.0,1.33539466]
[1722299513512,0.01148,66463.0,66462.0,1.31239466]
[1722299514182,0.00848,66463.0,66462.0,1.31139466]
[1722299514384,0.00848,66463.0,66462.0,1.32239466]
[1722299514786,0.03208029,66463.0,66462.0,1.32239466]
[1722299515168,0.00848,66463.0,66462.0,1.32239466]
[1722299515863,0.00948,66463.0,66462.0,1.33539466]
[1722299516094,0.00948,66463.0,66462.0,1.57613366]
[1722299516855,0.00948,66463.0,66462.0,1.56513366]
[1722299517302,0.00948,66463.0,66462.0,1.57713366]
[1722299517932,0.03307862,66463.0,66462.0,1.57713366]
[1722299518718,0.03207862,66463.0,66462.0,1.56413366]
[1722299519122,0.03307862,66463.0,66462.0,1.57713366]
[1722299519323,0.03207862,66463.0,66462.0,1.56413366]
[1722299519781,0.03307862,66463.0,66462.0,1.57713366]
[1722299519932,0.03307862,66463.0,66462.0,1.56413366]
[1722299521078,0.04234578,66473.0,66472.0,0.120351]
[1722299521296,0.04234578,66473.0,66472.0,0.38589467]
[1722299521511,0.04234578,66473.0,66472.0,1.10800067]
[1722299522468,0.04234578,66473.0,66472.0,1.11100067]
[1722299523768,0.04234578,66473.0,66472.0,1.35170267]
[1722299525517,0.04234578,66473.0,66472.0,1.36083132]
[1722299526093,0.07534716,66482.0,66481.0,0.601675]
[1722299526282,0.0001,66491.0,66490.0,0.360955]
[1722299526482,0.0001,66491.0,66490.0,0.76713567]
[1722299526686,0.0001,66491.0,66490.0,0.86713567]
[1722299526887,0.0001,66491.0,66490.0,1.10777267]
[1722299527231,0.0001,66491.0,66490.0,0.62649867]
[1722299527678,0.0001,66491.0,66490.0,0.38586167]
[1722299527828,0.0001,66491.0,66490.0,0.38786167]
[1722299528034,0.0001,66491.0,66490.0,0.38586167]
[1722299528249,0.0001,66491.0,66490.0,0.62649867]
[1722299528449,0.0001,66491.0,66490.0,0.38586167]
[1722299528934,0.0001,66491.0,66490.0,0.62649867]
[1722299529106,0.0001,66491.0,66490.0,0.38586167]
[1722299529309,0.0001,66491.0,66490.0,0.62649867]
[1722299529697,0.02369174,66491.0,66490.0,0.38586167]
[1722299529898,0.02369174,66491.0,66490.0,0.26554367]
[1722299530119,0.02369174,66491.0,66490.0,0.27458718]
[1722299530323,0.02369174,66491.0,66490.0,0.11491063]
[1722299530687,0.02369174,66491.0,66484.0,0.01491063]
[1722299530688,0.42202073,66491.0,66484.0,0.01491063]
[1722299530894,0.07534716,66485.0,66484.0,0.01491063]
[1722299531451,0.23158836,66485.0,66484.0,0.01491063]
[1722299531881,0.23158836,66485.0,66484.0,0.16554367]
[1722299532415,0.1922,66491.0,66484.0,0.40620267]
[1722299532631,0.07534716,66485.0,66484.0,0.01791063]
[1722299532836,0.07534716,66485.0,66484.0,0.01491063]
[1722299532992,0.23158276,66485.0,66484.0,0.01491063]
[1722299533223,0.23158276,66485.0,66484.0,0.01691063]
[1722299533522,0.23158276,66485.0,66484.0,0.01491063]
[1722299535784,0.23158276,66485.0,66484.0,0.15063304]
[1722299537342,0.1562356,66485.0,66484.0,0.15063304]
[1722299537545,0.1562356,66485.0,66484.0,0.15363304]
[1722299537756,0.1562356,66489.0,66484.0,0.15363304]
[1722299537950,0.1562356,66489.0,66485.0,0.15063304]
[1722299537951,0.1562356,66488.0,66485.0,0.15063304]
[1722299538361,0.1562356,66487.0,66485.0,0.15063304]
[1722299538559,0.1562356,66486.0,66485.0,0.15063304]
[1722299538812,0.553154,66491.0,66485.0,0.15063304]
[1722299538813,0.1562356,66488.0,66485.0,0.15063304]
[1722299539004,0.1562356,66487.0,66485.0,0.15063304]
[1722299539191,0.1562356,66486.0,66485.0,0.15063304]
[1722299539928,0.1562356,66490.0,66485.0,0.15063304]
[1722299540130,0.1562356,66490.0,66485.0,0.39128604]
[1722299540344,0.1562356,66489.0,66486.0,0.1]
[1722299540543,0.1562356,66488.0,66487.0,0.15063304]
[1722299540746,0.001,66488.0,66487.0,0.25063304]
[1722299540952,0.1562356,66488.0,66487.0,0.25063304]
[1722299541125,0.2766526,66491.0,66487.0,0.25063304]
[1722299541334,0.12032,66489.0,66488.0,0.1]
[1722299541534,0.1562356,66489.0,66488.0,0.25063304]
[1722299541738,0.17982909,66489.0,66488.0,0.25063304]
[1722299542075,0.30014909,66489.0,66488.0,0.25063304]
[1722299542430,0.77515088,66489.0,66488.0,0.25063304]
[1722299542639,0.75155739,66489.0,66488.0,0.25063304]
[1722299542848,0.51091639,66489.0,66488.0,0.25063304]
[1722299543047,0.75155739,66489.0,66488.0,0.25063304]
[1722299543248,0.51091639,66489.0,66488.0,0.25063304]
[1722299543656,0.51091813,66489.0,66488.0,0.25063304]
[1722299543851,0.75155913,66489.0,66488.0,0.25063304]
[1722299544129,0.99220013,66489.0,66488.0,0.15063304]
[1722299544283,0.99220013,66489.0,66473.0,0.01491063]
[1722299544284,0.1886,66488.0,66473.0,0.01491063]
[1722299544478,0.07534716,66476.0,66474.0,0.15063304]
[1722299544689,0.24066,66484.0,66474.0,0.70397504]
[1722299544690,0.1562356,66475.0,66474.0,0.70397504]
[1722299544892,0.11065354,66489.0,66474.0,0.70397504]
[1722299544893,5.0,66500.0,66490.0,0.360955]
[1722299545092,0.15621191,66496.0,66490.0,0.88013963]
[1722299545499,0.15621191,66496.0,66490.0,0.91030963]
[1722299545664,0.15621191,66496.0,66490.0,0.67966867]
[1722299545869,0.15621191,66496.0,66490.0,0.62649867]
[1722299546074,0.312517,66491.0,66490.0,0.15063304]
[1722299546274,0.34841191,66491.0,66490.0,0.15063304]
[1722299546483,0.70936291,66491.0,66490.0,0.15063304]
[1722299547071,0.46872891,66491.0,66490.0,0.15063304]
[1722299547221,0.26591191,66491.0,66490.0,0.15063304]
[1722299547816,0.15631191,66491.0,66490.0,0.15063304]
[1722299548006,0.15631191,66491.0,66490.0,0.59568804]
[1722299548324,0.15631191,66491.0,66490.0,0.73359867]
[1722299548694,0.0001,66491.0,66490.0,0.73359867]
[1722299549127,0.0001,66491.0,66490.0,0.97423567]
[1722299549327,0.0001,66491.0,66490.0,1.21487267]
[1722299549532,0.0001,66491.0,66490.0,1.22487267]
[1722299549732,0.0001,66491.0,66490.0,1.24504267]
[1722299550183,0.0001,66491.0,66490.0,0.71868804]
[1722299550348,0.0001,66491.0,66490.0,0.63458804]
[1722299550752,0.0001,66491.0,66490.0,0.15063304]
[1722299551119,0.0011,66491.0,66490.0,0.16463304]
[1722299551334,0.0001,66491.0,66490.0,0.15063304]
[1722299551544,0.0001,66491.0,66490.0,0.51158804]
[1722299551776,0.0001,66491.0,66490.0,0.75222504]
[1722299551981,0.15629461,66491.0,66490.0,0.75222504]
[1722299552191,0.15629461,66491.0,66490.0,1.03862504]
[1722299552418,0.0001,66491.0,66490.0,1.04262504]
[1722299552634,0.0001,66491.0,66490.0,1.06562504]
[1722299552798,0.0011,66491.0,66490.0,1.31326204]
[1722299553004,0.00193,66491.0,66490.0,1.31326204]
[1722299553208,0.00193,66491.0,66490.0,1.30926204]
[1722299553405,0.00193,66491.0,66490.0,1.31326204]
[1722299553606,0.00093,66491.0,66490.0,1.30626204]
[1722299553831,0.00193,66491.0,66490.0,1.30926204]
[1722299554163,0.00093,66491.0,66490.0,1.30226204]
[1722299554564,0.00193,66491.0,66490.0,1.34043204]
[1722299554991,0.00193,66491.0,66490.0,1.58106904]
[1722299555309,0.00193,66491.0,66490.0,1.34043204]
[1722299555982,0.00193,66491.0,66490.0,1.57306904]
[1722299556328,0.00093,66491.0,66490.0,1.33243204]
[1722299556455,0.00193,66491.0,66490.0,1.69106904]
[1722299556660,0.00193,66491.0,66490.0,1.68306904]
[1722299557058,0.00293,66491.0,66490.0,1.75882811]
[1722299557262,0.00093,66491.0,66490.0,1.68806904]
[1722299557465,0.00193,66491.0,66490.0,1.69706904]
[1722299557891,0.00848,66497.0,66490.0,1.69706904]
[1722299557892,0.00848,66497.0,66496.0,1.195067]
[1722299558215,5.0,66500.0,66499.0,0.741682]
[1722299558415,4.909775,66500.0,66499.0,2.14967004]
[1722299558610,4.8797,66500.0,66499.0,2.32661541]
[1722299558766,4.8797,66500.0,66499.0,2.27948266]
[1722299558965,4.8797,66500.0,66499.0,2.2289753]
[1722299559215,4.8797,66500.0,66499.0,2.2802522]
[1722299559371,4.8797,66500.0,66499.0,2.32738495]
[1722299560138,4.8797,66500.0,66499.0,2.32662508]
[1722299560417,4.729325,66500.0,66499.0,2.32859174]
[1722299560616,4.669175,66500.0,66499.0,2.32859174]
[1722299560760,4.57895,66500.0,66499.0,2.32859174]
[1722299560961,4.57895,66500.0,66499.0,2.34259174]
[1722299561524,4.5188,66500.0,66499.0,2.28704635]
[1722299561966,4.5188,66500.0,66499.0,2.30104635]
[1722299562171,4.5188,66500.0,66499.0,2.28704635]
[1722299562537,4.5188,66500.0,66499.0,2.18667004]
[1722299562953,4.5188,66500.0,66499.0,1.69692504]
[1722299563150,4.5188,66500.0,66499.0,1.67392504]
[1722299563704,4.5188,66500.0,66499.0,1.6830709]
[1722299564076,4.5188,66500.0,66499.0,1.8416709]
[1722299564496,4.5188,66500.0,66499.0,1.8556709]
[1722299565200,4.5188,66500.0,66499.0,1.8786709]
[1722299565448,4.5188,66500.0,66499.0,2.1192759]
[1722299565647,4.5188,66500.0,66499.0,2.21990849]
[1722299566327,4.5188,66500.0,66499.0,2.20590849]
[1722299566525,4.45865,66500.0,66499.0,2.29636849]
[1722299566781,4.3985,66500.0,66499.0,2.29636849]
[1722299566975,4.33835,66500.0,66499.0,2.29636849]
[1722299567172,4.33835,66500.0,66499.0,2.31836849]
[1722299567317,4.33835,66500.0,66499.0,2.24763991]
[1722299567515,4.2782,66500.0,66499.0,2.24763991]
[1722299567720,4.21805,66500.0,66499.0,2.29636849]
[1722299567976,4.187975,66500.0,66499.0,2.29636849]
[1722299568572,4.1579,66500.0,66499.0,2.29636849]
[1722299568768,4.0376,66500.0,66499.0,2.48824491]
[1722299568949,4.0376,66500.0,66499.0,2.24763991]
[1722299569356,4.0376,66500.0,66499.0,2.29636849]
[1722299569556,3.887225,66500.0,66499.0,2.35113986]
[1722299570564,3.73685,66500.0,66499.0,2.33713986]
[1722299570975,3.73685,66500.0,66499.0,2.35113986]
[1722299571429,3.73685,66500.0,66499.0,2.33713986]
[1722299572273,3.61655,66500.0,66499.0,2.33713986]
[1722299572475,3.61655,66500.0,66499.0,2.28236849]
[1722299572672,3.61655,66500.0,66499.0,2.30293156]
[1722299573311,3.61655,66500.0,66499.0,2.47503156]
[1722299573512,3.61655,66500.0,66499.0,1.98536656]
[1722299573732,3.61655,66500.0,66499.0,1.6830709]
[1722299574433,3.61655,66500.0,66499.0,1.6970709]
[1722299574618,3.61655,66500.0,66499.0,1.6830709]
[1722299575014,3.61655,66500.0,66499.0,1.7200709]
[1722299575821,3.61655,66500.0,66499.0,1.5006709]
[1722299576005,3.61655,66500.0,66499.0,1.1460659]
[1722299576212,3.61655,66500.0,66499.0,0.5648559]
[1722299576213,3.80955,66500.0,66499.0,0.5648559]
[1722299576422,3.80955,66500.0,66499.0,0.7752909]
[1722299576831,3.80955,66500.0,66499.0,1.0018959]
[1722299577041,3.72165,66500.0,66499.0,1.0018959]
[1722299577255,3.72165,66500.0,66499.0,1.0320659]
[1722299577885,3.72165,66500.0,66499.0,0.7914609]
[1722299578840,3.61655,66500.0,66499.0,1.1600659]
[1722299579168,3.61655,66500.0,66499.0,1.1830659]
[1722299579357,3.58353979,66500.0,66499.0,1.4236709]
[1722299579549,3.57472419,66500.0,66499.0,1.4236709]
[1722299579753,3.57472419,66500.0,66499.0,1.1830659]
[1722299579957,3.57472419,66500.0,66499.0,1.1690659]
[1722299580254,3.57472419,66500.0,66499.0,1.1820659]
[1722299580472,3.57472419,66500.0,66499.0,0.9414609]
[1722299580694,3.57472419,66500.0,66499.0,0.9112909]
[1722299580919,3.57472419,66500.0,66499.0,0.4300809]
[1722299581111,3.66082419,66500.0,66499.0,0.29793504]
[1722299581658,3.66082419,66500.0,66499.0,1.00675004]
[1722299581659,3.57472419,66500.0,66499.0,1.00675004]
[1722299581818,3.57472419,66500.0,66499.0,1.02975004]
[1722299582076,3.57472419,66500.0,66499.0,1.04375004]
[1722299582428,3.57472419,66500.0,66499.0,0.80314504]
[1722299582596,3.57472419,66500.0,66499.0,0.64854004]
[1722299582797,3.83712133,66500.0,66499.0,0.27763304]
[1722299583006,3.83712133,66500.0,66499.0,0.39793504]
[1722299583408,3.83712133,66500.0,66499.0,0.37093504]
[1722299583608,3.83712133,66500.0,66499.0,0.39293504]
[1722299583857,3.83712133,66500.0,66499.0,0.63354004]
[1722299584058,3.83712133,66500.0,66499.0,0.86014504]
[1722299584272,3.83712133,66500.0,66499.0,0.86714504]
[1722299584646,3.83712133,66500.0,66499.0,0.62654004]
[1722299585048,3.83712133,66500.0,66499.0,0.85914504]
[1722299585255,3.68092419,66500.0,66499.0,0.85914504]
[1722299585623,3.68092419,66500.0,66499.0,1.12775004]
[1722299585936,3.57472419,66500.0,66499.0,1.12775004]
[1722299586339,3.57472419,66500.0,66499.0,0.88714504]
[1722299586537,3.57472419,66500.0,66499.0,0.64654004]
[1722299586799,3.57472419,66500.0,66499.0,0.88714504]
[1722299587153,3.57472419,66500.0,66499.0,0.38384804]
[1722299587355,3.73175412,66500.0,66499.0,0.38384804]
[1722299587555,3.73175412,66500.0,66499.0,0.62445304]
[1722299587556,3.57555419,66500.0,66499.0,0.62445304]
[1722299587829,3.57555419,66500.0,66499.0,0.86505804]
[1722299588852,3.57555419,66500.0,66499.0,0.88805804]
[1722299589465,3.57555419,66500.0,66499.0,0.64745304]
[1722299589862,3.57555419,66500.0,66499.0,0.88805804]
[1722299592511,3.59914028,66500.0,66499.0,0.86505804]
[1722299592713,3.59914028,66500.0,66499.0,0.62445304]